fUST/lending_fUST_20250731
["ID","MTS","AMOUNT","RATE_DAILY","PERIOD"]
[376396583,1753963867299,-16772.36715034,0.000234,2]
[376396584,1753963867309,-151.0,0.000234,7]
[376396585,1753963867319,-151.0,0.000234,7]
[376396586,1753963867329,-824.977997,0.000234,7]
[376396587,1753963867339,-229.307814,0.000234,7]
[376396588,1753963867350,-824.977997,0.000234,7]
[376396589,1753963867360,-229.307814,0.000234,7]
[376396590,1753963867465,-151.0,0.000234,7]
[376396591,1753963867476,-288.913211,0.000234,7]
[376396592,1753963867485,-244.656716,0.000234,7]
[376396593,1753963867495,-244.656716,0.000234,7]
[376396594,1753963867504,-235.201776,0.000234,7]
[376396595,1753963867514,-235.201776,0.000234,7]
[376396596,1753963867524,-686.82676673,0.00023417,9]
[376396597,1753963867534,-151.0,0.00023561,7]
[376396598,1753963867543,-151.0,0.00023561,7]
[376396599,1753963867552,-151.0,0.00023561,7]
[376396600,1753963867562,-151.0,0.00023561,7]
[376396601,1753963867571,-483.51,0.00023561,2]
[376396602,1753963867581,-287.43,0.00023561,2]
[376396603,1753963867590,-570.7,0.00023561,2]
[376396604,1753963867599,-460.0,0.00023561,2]
[376396605,1753963867609,-584.6,0.00023561,2]
[376396606,1753963867618,-1216.2,0.00023561,2]
[376396607,1753963867627,-483.73,0.00023561,2]
[376396608,1753963867636,-1379.79,0.00023561,2]
[376396609,1753963867646,-2057.89,0.00023561,2]
[376396610,1753963867655,-1568.32,0.00023561,2]
[376396611,1753963867665,-488.12,0.00023561,2]
[376396612,1753963867674,-1262.54,0.00023561,2]
[376396613,1753963867683,-1116.38,0.00023561,2]
[376396614,1753963867693,-460.0,0.00023561,2]
[376396615,1753963867702,-460.0,0.00023561,2]
[376396616,1753963867711,-1791.33,0.00023561,2]
[376396617,1753963867721,-1267.79,0.00023561,2]
[376396618,1753963867730,-460.0,0.00023561,2]
[376396619,1753963867739,-545.86,0.00023561,2]
[376396620,1753963867749,-461.47,0.00023561,2]
[376396621,1753963867759,-520.64,0.00023561,2]
[376396622,1753963867769,-1447.46,0.00023561,2]
[376396623,1753963867779,-460.0,0.00023561,2]
[376396624,1753963867789,-1025.05,0.00023561,2]
[376396625,1753963867798,-460.0,0.00023561,2]
[376396626,1753963867808,-526.68,0.00023561,2]
[376396627,1753963867818,-5641.46,0.00023561,2]
[376396628,1753963867828,-2424.54,0.00023561,2]
[376396629,1753963867837,-200.0,0.00023561,2]
[376396630,1753963867846,-200.0,0.00023561,2]
[376396631,1753963867855,-261.68,0.00023561,2]
[376396632,1753963867865,-200.0,0.00023561,2]
[376396633,1753963867874,-200.0,0.00023561,2]
[376396634,1753963867883,-200.0,0.00023561,2]
[376396635,1753963867893,-156.38417752,0.00023561,2]
[376396636,1753963867904,-785.68,0.00023561,2]
[376396637,1753963867913,-945.34,0.00023561,2]
[376396638,1753963867922,-9143.18,0.000236,7]
[376396639,1753963867932,-22453.24,0.000236,2]
[376396640,1753963867941,-151.0,0.000236,7]
[376396641,1753963867950,-151.0,0.000236,7]
[376396642,1753963867959,-151.0,0.000236,7]
[376396643,1753963867968,-151.0,0.000236,7]
[376396644,1753963867977,-151.0,0.000236,7]
[376396645,1753963867987,-686.82676673,0.00023624,9]
[376396646,1753963867996,-968.99856048,0.00023634,2]
[376396647,1753963868006,-511.0,0.00023637,2]
[376396648,1753963868021,-511.0,0.00023775,2]
[376396649,1753963868031,-511.0,0.00023788,2]
[376396650,1753963868039,-746.34,0.00023791,7]
[376396651,1753963868048,-716.77,0.00023793,7]
[376396652,1753963868058,-502.86,0.00023805,7]
[376396653,1753963868067,-548.11,0.00023813,7]
[376396654,1753963868076,-686.82676673,0.00023831,10]
[376396655,1753963868086,-511.0,0.00023834,2]
[376396656,1753963868095,-151.0,0.00023835,7]
[376396657,1753963868104,-151.0,0.00023835,7]
[376396658,1753963868114,-570.7,0.00023835,2]
[376396659,1753963868123,-355.59,0.00023835,2]
[376396660,1753963868132,-584.6,0.00023835,2]
[376396661,1753963868141,-1216.2,0.00023835,2]
[376396662,1753963868150,-483.73,0.00023835,2]
[376396663,1753963868159,-1379.79,0.00023835,2]
[376396664,1753963868170,-2057.89,0.00023835,2]
[376396665,1753963868179,-1568.32,0.00023835,2]
[376396666,1753963868189,-488.12,0.00023835,2]
[376396667,1753963868199,-1262.54,0.00023835,2]
[376396668,1753963868209,-1116.38,0.00023835,2]
[376396669,1753963868218,-460.0,0.00023835,2]
[376396670,1753963868228,-460.0,0.00023835,2]
[376396671,1753963868237,-1791.33,0.00023835,2]
[376396672,1753963868246,-1267.79,0.00023835,2]
[376396673,1753963868255,-460.0,0.00023835,2]
[376396674,1753963868264,-461.47,0.00023835,2]
[376396675,1753963868273,-520.64,0.00023835,2]
[376396676,1753963868283,-1447.46,0.00023835,2]
[376396677,1753963868292,-460.0,0.00023835,2]
[376396678,1753963868302,-1025.05,0.00023835,2]
[376396679,1753963868311,-460.0,0.00023835,2]
[376396680,1753963868321,-526.68,0.00023835,2]
[376396681,1753963868330,-5641.46,0.00023835,2]
[376396682,1753963868340,-2424.54,0.00023835,2]
[376396683,1753963868349,-785.68,0.00023835,2]
[376396684,1753963868360,-945.34,0.00023835,2]
[376396685,1753963868369,-957.9822,0.0002387,2]
[376396686,1753963868378,-511.0,0.00023874,2]
[376396687,1753963868388,-746.35,0.00023891,7]
[376396688,1753963868398,-2530.82432108,0.000239,2]
[376396689,1753963868408,-502.86,0.00023905,7]
[376396690,1753963868417,-548.11,0.00023913,7]
[376396691,1753963868430,-511.0,0.00023953,2]
[376396692,1753963868447,-160.0,0.00024,7]
[376396693,1753963868456,-160.0,0.00024,7]
[376396694,1753963868466,-502.86,0.00024005,7]
[376396695,1753963868476,-151.0,0.00024019,6]
[376396696,1753963868486,-686.82676673,0.00024038,10]
[376396697,1753963868495,-320.2107096,0.00024082,2]
[376396698,1753963868504,-306.7325403,0.00024082,2]
[376396699,1753963868513,-178.4386705,0.00024082,2]
[376396700,1753963868522,-1156.3763248,0.00024082,2]
[376396701,1753963868533,-205.7268859,0.00024082,2]
[376396702,1753963868542,-153.0,0.00024082,2]
[376396703,1753963868551,-578.3876535,0.00024082,2]
[376396704,1753963868560,-578.3876535,0.00024082,2]
[376396705,1753963868569,-578.3876535,0.00024082,2]
[376396706,1753963868579,-577.5896891,0.00024082,2]
[376396707,1753963868588,-578.1881624,0.00024082,2]
[376396708,1753963868597,-511.0,0.00024088,2]
[376396709,1753963868607,-502.86,0.00024105,7]
[376396710,1753963868617,-570.7,0.00024109,2]
[376396711,1753963868626,-584.6,0.00024109,2]
[376396712,1753963868636,-1216.2,0.00024109,2]
[376396713,1753963868645,-483.73,0.00024109,2]
[376396714,1753963868654,-1379.79,0.00024109,2]
[376396715,1753963868664,-2057.89,0.00024109,2]
[376396716,1753963868673,-1568.32,0.00024109,2]
[376396717,1753963868682,-488.12,0.00024109,2]
[376396718,1753963868691,-1262.54,0.00024109,2]
[376396719,1753963868701,-1116.38,0.00024109,2]
[376396720,1753963868711,-262.15,0.00024109,2]
[376396721,1753963868720,-460.0,0.00024109,2]
[376396722,1753963868730,-1791.33,0.00024109,2]
[376396723,1753963868739,-1267.79,0.00024109,2]
[376396724,1753963868748,-460.0,0.00024109,2]
[376396725,1753963868757,-461.47,0.00024109,2]
[376396726,1753963868767,-520.64,0.00024109,2]
[376396727,1753963868776,-1447.46,0.00024109,2]
[376396728,1753963868786,-460.0,0.00024109,2]
[376396729,1753963868794,-1025.05,0.00024109,2]
[376396730,1753963868804,-460.0,0.00024109,2]
[376396731,1753963868813,-526.68,0.00024109,2]
[376396732,1753963868822,-5641.46,0.00024109,2]
[376396733,1753963868831,-2424.54,0.00024109,2]
[376396734,1753963868841,-785.68,0.00024109,2]
[376396735,1753963868850,-945.34,0.00024109,2]
[376396736,1753963868860,-511.0,0.0002412,2]
[376396737,1753963868869,-502.86,0.00024205,7]
[376396738,1753963868878,-511.0,0.00024238,2]
[376396739,1753963868888,-686.82676673,0.00024245,10]
[376396740,1753963868897,-500.0,0.0002428,2]
[376396741,1753963868906,-502.86,0.00024305,7]
[376396742,1753963868915,-153.0,0.00024329,2]
[376396743,1753963868925,-968.99856048,0.00024345,2]
[376396744,1753963868934,-570.7,0.00024383,2]
[376396745,1753963868946,-584.6,0.00024383,2]
[376396746,1753963868955,-1216.2,0.00024383,2]
[376396747,1753963868964,-483.73,0.00024383,2]
[376396748,1753963868973,-1379.79,0.00024383,2]
[376396749,1753963868983,-2057.89,0.00024383,2]
[376396750,1753963868992,-1568.32,0.00024383,2]
[376396751,1753963869002,-488.12,0.00024383,2]
[376396752,1753963869014,-1262.54,0.00024383,2]
[376396753,1753963869023,-1116.38,0.00024383,2]
[376396754,1753963869034,-460.0,0.00024383,2]
[376396755,1753963869044,-1791.33,0.00024383,2]
[376396756,1753963869053,-1267.79,0.00024383,2]
[376396757,1753963869064,-460.0,0.00024383,2]
[376396758,1753963869073,-461.47,0.00024383,2]
[376396759,1753963869082,-231.312791,0.00024383,7]
[376396760,1753963869093,-520.64,0.00024383,2]
[376396761,1753963869102,-1447.46,0.00024383,2]
[376396762,1753963869111,-460.0,0.00024383,2]
[376396763,1753963869120,-1025.05,0.00024383,2]
[376396764,1753963869131,-460.0,0.00024383,2]
[376396765,1753963869141,-526.68,0.00024383,2]
[376396766,1753963869152,-5641.46,0.00024383,2]
[376396767,1753963869161,-2424.54,0.00024383,2]
[376396768,1753963869171,-785.68,0.00024383,2]
[376396769,1753963869180,-945.34,0.00024383,2]
[376396770,1753963869189,-511.0,0.00024398,2]
[376396771,1753963869198,-1694.18,0.000244,7]
[376396772,1753963869208,-502.86,0.00024405,7]
[376396773,1753963869217,-686.82676673,0.00024452,11]
[376396774,1753963869226,-511.0,0.00024463,2]
[376396775,1753963869235,-502.93,0.00024505,7]
[376396776,1753963869245,-151.0,0.00024524,6]
[376396777,1753963869254,-33032.20639094,0.0002465,2]
[376396778,1753963869263,-151.0,0.0002465,7]
[376396779,1753963869272,-277.335676,0.0002465,7]
[376396780,1753963869281,-151.0,0.0002465,7]
[376396781,1753963869291,-511.0,0.00024652,2]
[376396782,1753963869300,-151.0,0.00024657,7]
[376396783,1753963869309,-570.7,0.00024657,2]
[376396784,1753963869319,-151.0,0.00024657,7]
[376396785,1753963869329,-584.6,0.00024657,2]
[376396786,1753963869340,-1216.2,0.00024657,2]
[376396787,1753963869350,-483.73,0.00024657,2]
[376396788,1753963869360,-1379.79,0.00024657,2]
[376396789,1753963869370,-2057.89,0.00024657,2]
[376396790,1753963869380,-1568.32,0.00024657,2]
[376396791,1753963869399,-488.12,0.00024657,2]
[376396792,1753963869408,-1262.54,0.00024657,2]
[376396793,1753963869417,-1116.38,0.00024657,2]
[376396794,1753963869426,-460.0,0.00024657,2]
[376396795,1753963869436,-1791.33,0.00024657,2]
[376396796,1753963869445,-1267.79,0.00024657,2]
[376396797,1753963869455,-460.0,0.00024657,2]
[376396798,1753963869464,-461.47,0.00024657,2]
[376396799,1753963869474,-520.64,0.00024657,2]
[376396800,1753963869483,-1447.46,0.00024657,2]
[376396801,1753963869493,-460.0,0.00024657,2]
[376396802,1753963869502,-1025.05,0.00024657,2]
[376396803,1753963869512,-460.0,0.00024657,2]
[376396804,1753963869522,-526.68,0.00024657,2]
[376396805,1753963869531,-5641.46,0.00024657,2]
[376396806,1753963869542,-2424.54,0.00024657,2]
[376396807,1753963869552,-785.68,0.00024657,2]
[376396808,1753963869562,-945.34,0.00024657,2]
[376396809,1753963869571,-300.0,0.00024657,4]
[376396810,1753963869581,-300.0,0.00024657,4]
[376396811,1753963869590,-300.0,0.00024657,4]
[376396812,1753963869600,-275.22735325,0.00024657,4]
[376396813,1753963869609,-380.0,0.00024658,2]
[376396814,1753963869619,-200.0,0.00024658,15]
[376396815,1753963869628,-151.0,0.00024658,7]
[376396816,1753963869638,-686.82676673,0.00024659,11]
[376396817,1753963869647,-511.0,0.00024702,2]
[376396818,1753963869656,-511.0,0.00024717,2]
[376396819,1753963869665,-511.0,0.00024751,2]
[376396820,1753963869674,-511.0,0.00024859,2]
[376396821,1753963869684,-686.82676673,0.00024866,12]
[376396822,1753963869693,-160.0,0.000249,3]
[376396823,1753963869702,-841.37753757,0.000249,3]
[376396824,1753963869711,-151.0,0.000249,7]
[376396825,1753963869720,-151.0,0.000249,7]
[376396826,1753963869730,-151.0,0.000249,7]
[376396827,1753963869739,-151.0,0.000249,7]
[376396828,1753963869748,-151.0,0.000249,7]
[376396829,1753963869758,-151.0,0.000249,7]
[376396830,1753963869767,-151.0,0.000249,7]
[376396831,1753963869776,-151.0,0.000249,7]
[376396832,1753963869786,-151.0,0.000249,7]
[376396833,1753963869892,-151.0,0.000249,7]
[376396834,1753963869902,-151.0,0.000249,7]
[376396835,1753963869911,-151.0,0.000249,7]
[376396836,1753963869920,-824.977997,0.000249,7]
[376396837,1753963869930,-229.307814,0.000249,7]
[376396838,1753963869939,-824.977997,0.000249,7]
[376396839,1753963869948,-229.307814,0.000249,7]
[376396840,1753963869957,-151.0,0.000249,7]
[376396841,1753963869966,-151.0,0.000249,7]
[376396842,1753963869975,-151.0,0.000249,7]
[376396843,1753963869984,-288.913211,0.000249,7]
[376396844,1753963869994,-1310.07259,0.000249,7]
[376396845,1753963870003,-1310.07259,0.000249,7]
[376396846,1753963870014,-172.465496,0.000249,7]
[376396847,1753963870026,-151.0,0.000249,7]
[376396848,1753963870037,-151.0,0.000249,7]
[376396849,1753963870047,-151.0,0.000249,7]
[376396850,1753963870057,-244.656716,0.000249,7]
[376396851,1753963870066,-244.656716,0.000249,7]
[376396852,1753963870076,-670713.691592,0.000249,2]
[376396853,1753963870085,-570.7,0.00024931,2]
[376396854,1753963870097,-584.6,0.00024931,2]
[376396855,1753963870108,-1216.2,0.00024931,2]
[376396856,1753963870117,-483.73,0.00024931,2]
[376396857,1753963870127,-1379.79,0.00024931,2]
[376396858,1753963870137,-2057.89,0.00024931,2]
[376396859,1753963870146,-1568.32,0.00024931,2]
[376396860,1753963870155,-488.12,0.00024931,2]
[376396861,1753963870166,-1262.54,0.00024931,2]
[376396862,1753963870175,-1116.38,0.00024931,2]
[376396863,1753963870184,-460.0,0.00024931,2]
[376396864,1753963870194,-1791.33,0.00024931,2]
[376396865,1753963870203,-1267.79,0.00024931,2]
[376396866,1753963870213,-460.0,0.00024931,2]
[376396867,1753963870222,-461.47,0.00024931,2]
[376396868,1753963870232,-520.64,0.00024931,2]
[376396869,1753963870240,-1447.46,0.00024931,2]
[376396870,1753963870249,-460.0,0.00024931,2]
[376396871,1753963870258,-1025.05,0.00024931,2]
[376396872,1753963870268,-332.89,0.00024931,2]
[376396873,1753963870277,-526.68,0.00024931,2]
[376396874,1753963870288,-5641.46,0.00024931,2]
[376396875,1753963870297,-2424.54,0.00024931,2]
[376396876,1753963870306,-945.34,0.00024931,2]
[376396877,1753963870316,-785.68,0.00024931,2]
[376396878,1753963870325,-160.0,0.00024952,7]
[376396879,1753963870334,-841.37753757,0.00024952,7]
[376396880,1753963870343,-511.0,0.00024969,2]
[376396881,1753963870352,-160.0,0.00025,3]
[376396882,1753963870362,-160.0,0.00025,3]
[376396883,1753963870371,-160.0,0.00025,10]
[376396884,1753963870381,-151.0,0.0002503,6]
[376396885,1753963870390,-968.99856048,0.00025057,2]
[376396886,1753963870400,-686.82676673,0.00025072,12]
[376396887,1753963870409,-150.0,0.00025079,2]
[376396888,1753963870419,-623.28755202,0.00025079,16]
[376396889,1753963870428,-511.0,0.00025086,2]
[376396890,1753963870437,-841.37753757,0.000251,7]
[376396891,1753963870447,-22453.24,0.000251,2]
[376396892,1753963870457,-511.0,0.00025166,2]
[376396893,1753963870467,-570.7,0.00025205,2]
[376396894,1753963870476,-584.6,0.00025205,2]
[376396895,1753963870486,-1216.2,0.00025205,2]
[376396896,1753963870495,-483.73,0.00025205,2]
[376396897,1753963870505,-1379.79,0.00025205,2]
[376396898,1753963870515,-2057.89,0.00025205,2]
[376396899,1753963870524,-1568.32,0.00025205,2]
[376396900,1753963870534,-488.12,0.00025205,2]
[376396901,1753963870543,-1262.54,0.00025205,2]
[376396902,1753963870553,-1116.38,0.00025205,2]
[376396903,1753963870563,-341.55896025,0.00025205,2]
[376396904,1753963870573,-1791.33,0.00025205,2]
[376396905,1753963870583,-1267.79,0.00025205,2]
[376396906,1753963870593,-521.26,0.00025205,2]
[376396907,1753963870602,-461.47,0.00025205,2]
[376396908,1753963870612,-520.64,0.00025205,2]
[376396909,1753963870621,-235.201776,0.00025205,7]
[376396910,1753963870630,-235.201776,0.00025205,7]
[376396911,1753963870640,-1447.46,0.00025205,2]
[376396912,1753963870649,-195.87656034,0.00025205,2]
[376396913,1753963870658,-1025.05,0.00025205,2]
[376396914,1753963870667,-526.68,0.00025205,2]
[376396915,1753963870676,-5641.46,0.00025205,2]
[376396916,1753963870686,-2424.54,0.00025205,2]
[376396917,1753963870696,-945.34,0.00025205,2]
[376396918,1753963870705,-785.68,0.00025205,2]
[376396919,1753963870714,-686.82676673,0.00025279,12]
[376396920,1753963870724,-511.0,0.00025293,2]
[376396921,1753963870732,-9143.18,0.000253,7]
[376396922,1753963870741,-511.0,0.0002533,2]
[376396923,1753963870751,-511.0,0.00025343,2]
[376396924,1753963870760,-415.52503468,0.00025379,30]
[376396925,1753963870770,-511.0,0.00025412,2]
[376396926,1753963870779,-570.82,0.00025479,2]
[376396927,1753963870789,-584.81185755,0.00025479,2]
[376396928,1753963870799,-1216.24,0.00025479,2]
[376396929,1753963870809,-483.79,0.00025479,2]
[376396930,1753963870818,-1379.95,0.00025479,2]
[376396931,1753963870828,-2058.00595057,0.00025479,2]
[376396932,1753963870837,-1568.37,0.00025479,2]
[376396933,1753963870846,-488.32703975,0.00025479,2]
[376396934,1753963870856,-1262.65495824,0.00025479,2]
[376396935,1753963870865,-1116.54,0.00025479,2]
[376396936,1753963870875,-1791.46,0.00025479,2]
[376396937,1753963870885,-1267.8638975,0.00025479,2]
[376396938,1753963870894,-461.47,0.00025479,2]
[376396939,1753963870906,-520.77,0.00025479,2]
[376396940,1753963870915,-1447.684541,0.00025479,2]
[376396941,1753963870924,-1025.05,0.00025479,2]
[376396942,1753963870934,-526.83,0.00025479,2]
[376396943,1753963870944,-5641.51703901,0.00025479,2]
[376396944,1753963870953,-2424.69993777,0.00025479,2]
[376396945,1753963870964,-945.49,0.00025479,2]
[376396946,1753963870974,-785.84,0.00025479,2]
[376396947,1753963870985,-686.82676673,0.00025486,13]
[376396948,1753963870994,-151.0,0.00025535,7]
[376396949,1753963871005,-200.0,0.00025541,15]
[376396950,1753963871018,-200.0,0.00025541,15]
[376396951,1753963871029,-200.0,0.00025541,15]
[376396952,1753963871040,-200.0,0.00025541,15]
[376396953,1753963871050,-200.0,0.00025541,15]
[376396954,1753963871062,-200.0,0.00025541,15]
[376396955,1753963871072,-200.0,0.00025541,15]
[376396956,1753963871081,-200.0,0.00025541,15]
[376396957,1753963871090,-200.0,0.00025541,15]
[376396958,1753963871099,-394.0,0.00025541,15]
[376396959,1753963871108,-511.0,0.0002559,2]
[376396960,1753963871117,-1694.18,0.000256,7]
[376396961,1753963871127,-686.82676673,0.00025693,13]
[376396962,1753963871136,-963.172009,0.00025749,2]
[376396963,1753963871147,-500.0,0.00025753,4]
[376396964,1753963871156,-968.99856048,0.00025768,2]
[376396965,1753963871166,-686.82676673,0.000259,14]
[376396966,1753963871175,-635.0,0.00025949,2]
[376396967,1753963871185,-159.684336,0.00026027,2]
[376396968,1753963871194,-151.0,0.00026041,7]
[376396969,1753963871203,-1035.69,0.000262,7]
[376396970,1753963871212,-150.801974,0.00026217,2]
[376396971,1753963871221,-151.0,0.00026302,2]
[376396972,1753963871230,-151.0,0.00026302,2]
[376396973,1753963871239,-163.7949765,0.00026302,2]
[376396974,1753963871248,-289.97248757,0.00026302,2]
[376396975,1753963871257,-151.0,0.00026302,2]
[376396976,1753963871266,-500.0,0.00026302,2]
[376396977,1753963871275,-151.0,0.00026302,2]
[376396978,1753963871285,-500.0,0.00026302,2]
[376396979,1753963871294,-151.0,0.00026302,2]
[376396980,1753963871303,-500.0,0.00026302,2]
[376396981,1753963871312,-151.78234512,0.00026302,2]
[376396982,1753963871322,-151.0,0.00026302,2]
[376396983,1753963871332,-151.0,0.00026302,2]
[376396984,1753963871341,-500.0,0.00026302,2]
[376396985,1753963871350,-500.0,0.00026302,2]
[376396986,1753963871359,-500.0,0.00026302,2]
[376396987,1753963871369,-500.0,0.00026302,2]
[376396988,1753963871378,-151.0,0.00026302,2]
[376396989,1753963871388,-151.0,0.00026302,2]
[376396990,1753963871397,-500.0,0.00026302,2]
[376396991,1753963871406,-500.0,0.00026302,2]
[376396992,1753963871415,-151.0,0.00026302,2]
[376396993,1753963871424,-152.35542293,0.00026302,2]
[376396994,1753963871433,-151.0,0.00026302,2]
[376396995,1753963871442,-151.56511578,0.00026302,2]
[376396996,1753963871451,-151.0,0.00026302,2]
[376396997,1753963871461,-151.1032,0.00026413,2]
[376396998,1753963871470,-968.99856048,0.00026479,2]
[376396999,1753963871479,-2008.0,0.000265,2]
[376397000,1753963871488,-2000.0,0.000265,2]
[376397001,1753963871497,-1027.9478858,0.00026521,2]
[376397002,1753963871506,-151.0,0.00026521,7]
[376397003,1753963871516,-151.0,0.00026521,7]
[376397004,1753963871526,-151.0,0.00026521,7]
[376397005,1753963871536,-207.2252,0.00026521,7]
[376397006,1753963871545,-151.0,0.00026521,7]
[376397007,1753963871555,-151.0,0.00026521,7]
[376397008,1753963871565,-151.0,0.00026521,7]
[376397009,1753963871577,-151.0,0.00026521,7]
[376397010,1753963871586,-151.0,0.00026521,7]
[376397011,1753963871596,-151.0,0.00026521,7]
[376397012,1753963871605,-152.81585,0.00026521,7]
[376397013,1753963871614,-151.0,0.00026521,7]
[376397014,1753963871624,-151.0,0.00026521,7]
[376397015,1753963871633,-151.0,0.00026521,7]
[376397016,1753963871642,-151.0,0.00026521,7]
[376397017,1753963871651,-151.0,0.00026521,7]
[376397018,1753963871660,-151.0,0.00026521,7]
[376397019,1753963871669,-151.0,0.00026521,7]
[376397020,1753963871678,-151.0,0.00026521,7]
[376397021,1753963871687,-151.0,0.00026521,7]
[376397022,1753963871697,-151.0,0.00026521,7]
[376397023,1753963871706,-151.0,0.00026521,7]
[376397024,1753963871714,-151.0,0.00026521,7]
[376397025,1753963871723,-151.0,0.00026521,7]
[376397026,1753963871732,-151.0,0.00026521,7]
[376397027,1753963871741,-154.178506,0.00026521,7]
[376397028,1753963871750,-220.408828,0.00026521,7]
[376397029,1753963871759,-157.724338,0.00026523,7]
[376397030,1753963871768,-151.0,0.00026529,7]
[376397031,1753963871777,-151.0,0.00026529,7]
[376397032,1753963871787,-151.0,0.00026529,7]
[376397033,1753963871795,-151.0,0.00026529,7]
[376397034,1753963871805,-151.0,0.0002653,7]
[376397035,1753963871814,-151.0,0.0002653,7]
[376397036,1753963871823,-151.0,0.0002653,7]
[376397037,1753963871832,-160.0,0.00026533,5]
[376397038,1753963871841,-151.0,0.00026533,7]
[376397039,1753963871851,-228.589995,0.00026533,7]
[376397040,1753963871860,-151.0,0.00026533,7]
[376397041,1753963871869,-151.0,0.00026533,7]
[376397042,1753963871879,-824.977997,0.00026533,7]
[376397043,1753963871888,-824.977997,0.00026533,7]
[376397044,1753963871897,-824.977997,0.00026533,7]
[376397045,1753963871906,-824.977997,0.00026533,7]
[376397046,1753963871915,-229.307814,0.00026533,7]
[376397047,1753963871925,-229.307814,0.00026533,7]
[376397048,1753963871935,-824.977997,0.00026533,7]
[376397049,1753963871945,-824.977997,0.00026533,7]
[376397050,1753963871954,-229.307814,0.00026533,7]
[376397051,1753963871963,-229.307814,0.00026533,7]
[376397052,1753963871973,-229.307814,0.00026533,7]
[376397053,1753963871982,-229.307814,0.00026533,7]
[376397054,1753963871991,-824.977997,0.00026533,7]
[376397055,1753963872000,-824.977997,0.00026533,7]
[376397056,1753963872103,-824.977997,0.00026533,7]
[376397057,1753963872113,-824.977997,0.00026533,7]
[376397058,1753963872123,-229.307814,0.00026533,7]
[376397059,1753963872132,-229.307814,0.00026533,7]
[376397060,1753963872141,-824.977997,0.00026533,7]
[376397061,1753963872150,-229.307814,0.00026533,7]
[376397062,1753963872159,-824.977997,0.00026533,7]
[376397063,1753963872168,-229.307814,0.00026533,7]
[376397064,1753963872177,-229.307814,0.00026533,7]
[376397065,1753963872187,-229.307806,0.00026533,7]
[376397066,1753963872196,-151.0,0.00026533,7]
[376397067,1753963872204,-151.0,0.00026533,7]
[376397068,1753963872213,-151.0,0.00026533,7]
[376397069,1753963872222,-151.0,0.00026533,7]
[376397070,1753963872230,-176.229358,0.00026533,7]
[376397071,1753963872240,-151.0,0.00026533,7]
[376397072,1753963872249,-286.501484,0.00026533,7]
[376397073,1753963872258,-151.0,0.00026533,7]
[376397074,1753963872267,-151.0,0.00026533,7]
[376397075,1753963872276,-151.0,0.00026533,7]
[376397076,1753963872286,-151.0,0.00026533,7]
[376397077,1753963872295,-151.0,0.00026533,7]
[376397078,1753963872304,-288.913211,0.00026533,7]
[376397079,1753963872314,-288.913211,0.00026533,7]
[376397080,1753963872325,-288.913211,0.00026533,7]
[376397081,1753963872336,-288.913211,0.00026533,7]
[376397082,1753963872345,-288.913211,0.00026533,7]